fUSD/lending_fUSD_20250506
["ID","MTS","AMOUNT","RATE_DAILY","PERIOD"]
[360033650,1746498643278,-450.0,0.00019998,2]
[360033651,1746498643287,-450.0,0.00019998,2]
[360033652,1746498643296,-450.0,0.00019998,2]
[360033653,1746498643306,-470.0,0.00019998,2]
[360033654,1746498643315,-450.0,0.00019998,2]
[360033655,1746498643324,-450.0,0.00019998,2]
[360033656,1746498643333,-450.0,0.00019998,2]
[360033657,1746498643342,-377.08189952,0.00019998,2]
[360033658,1746498643351,-450.0,0.00019998,2]
[360033659,1746498643361,-450.0,0.00019998,2]
[360033660,1746498643370,-204.5,0.00019998,2]
[360033661,1746498643381,-909.29,0.00019998,2]
[360033662,1746498643390,-909.29,0.00019998,2]
[360033663,1746498643400,-450.0,0.00019998,2]
[360033664,1746498643409,-450.0,0.00019998,2]
[360033665,1746498643418,-450.0,0.00019998,2]
[360033666,1746498643428,-504.79604291,0.00019998,2]
[360033667,1746498643437,-416.38,0.00019998,2]
[360033668,1746498643446,-189.08691647,0.00019998,2]
[360033669,1746498643456,-450.0,0.00019998,2]
[360033670,1746498643465,-450.0,0.00019998,2]
[360033671,1746498643474,-450.0,0.00019998,2]
[360033672,1746498643484,-450.0,0.00019998,2]
[360033673,1746498643493,-450.0,0.00019998,2]
[360033674,1746498643502,-450.0,0.00019998,2]
[360033675,1746498643512,-163.5653244,0.00019998,2]
[360033676,1746498643521,-496.47,0.00019998,2]
[360033677,1746498643530,-496.47,0.00019998,2]
[360033678,1746498643539,-450.0,0.00019998,2]
[360033679,1746498643550,-497.58080491,0.00019998,2]
[360033680,1746498643559,-154.28613556,0.00019998,2]
[360033681,1746498643568,-450.0,0.00019998,2]
[360033682,1746498643578,-403.71340444,0.00019998,2]
[360033683,1746498643587,-450.0,0.00019998,2]
[360033684,1746498643597,-7463.56,0.00019998,2]
[360033685,1746498643607,-7463.56,0.00019998,2]
[360033686,1746498643617,-7463.56,0.00019998,2]
[360033687,1746498643627,-450.0,0.00019998,2]
[360033688,1746498643637,-450.0,0.00019998,2]
[360033689,1746498643647,-450.0,0.00019998,2]
[360033690,1746498643656,-218.62457192,0.00019998,2]
[360033691,1746498643666,-452.24188441,0.00019998,2]
[360033692,1746498643675,-331.15614344,0.00019999,2]
[360033693,1746498643685,-450.0,0.00019999,2]
[360033694,1746498643694,-450.0,0.00019999,2]
[360033695,1746498643703,-450.0,0.00019999,2]
[360033696,1746498643713,-450.0,0.00019999,2]
[360033697,1746498643722,-450.0,0.00019999,2]
[360033698,1746498643731,-450.0,0.00019999,2]
[360033699,1746498643741,-450.0,0.00019999,2]
[360033700,1746498643751,-363.28358405,0.00019999,2]
[360033701,1746498643760,-418.18482729,0.00019999,2]
[360033702,1746498643769,-450.0,0.00019999,2]
[360033703,1746498643778,-450.0,0.00019999,2]
[360033704,1746498643787,-450.0,0.00019999,2]
[360033705,1746498643796,-450.0,0.00019999,2]
[360033706,1746498643805,-450.0,0.00019999,2]
[360033707,1746498643814,-231.47863782,0.00019999,2]
[360033708,1746498643824,-450.0,0.00019999,2]
[360033709,1746498643833,-150.0,0.00019999,2]
[360033710,1746498643843,-389.19083672,0.00019999,2]
[360033711,1746498643852,-450.0,0.00019999,2]
[360033712,1746498643861,-450.0,0.00019999,2]
[360033713,1746498643871,-476.4026156,0.00019999,2]
[360033714,1746498643880,-473.98,0.00019999,2]
[360033715,1746498643889,-450.0,0.00019999,2]
[360033716,1746498643898,-450.0,0.00019999,2]
[360033717,1746498643907,-272.96,0.00019999,2]
[360033718,1746498643916,-450.0,0.00019999,2]
[360033719,1746498643925,-450.0,0.00019999,2]
[360033720,1746498643934,-450.0,0.00019999,2]
[360033721,1746498643944,-450.0,0.00019999,2]
[360033722,1746498643953,-232.5,0.00019999,2]
[360033723,1746498643962,-150.0,0.00019999,2]
[360033724,1746498643971,-500.0,0.00019999,2]
[360033725,1746498643981,-213.33426488,0.00019999,2]
[360033726,1746498643993,-500.0,0.00019999,2]
[360033727,1746498644002,-150.47,0.00019999,2]
[360033728,1746498644011,-450.0,0.00019999,2]
[360033729,1746498644020,-3822.62,0.00019999,2]
[360033730,1746498644030,-3822.62,0.00019999,2]
[360033731,1746498644039,-3822.62,0.00019999,2]
[360033732,1746498644048,-3822.62,0.00019999,2]
[360033733,1746498644057,-3822.62,0.00019999,2]
[360033734,1746498644066,-3822.62,0.00019999,2]
[360033735,1746498644075,-3822.62,0.00019999,2]
[360033736,1746498644085,-3822.62,0.00019999,2]
[360033737,1746498644093,-3822.62,0.00019999,2]
[360033738,1746498644103,-3822.62,0.00019999,2]
[360033739,1746498644112,-3822.62,0.00019999,2]
[360033740,1746498644121,-3822.62,0.00019999,2]
[360033741,1746498644130,-3822.62,0.00019999,2]
[360033742,1746498644139,-3822.62,0.00019999,2]
[360033743,1746498644148,-3822.62,0.00019999,2]
[360033744,1746498644157,-3822.62,0.00019999,2]
[360033745,1746498644166,-3822.62,0.00019999,2]
[360033746,1746498644175,-3822.62,0.00019999,2]
[360033747,1746498644184,-3822.62,0.00019999,2]
[360033748,1746498644193,-3822.62,0.00019999,2]
[360033749,1746498644202,-3822.62,0.00019999,2]
[360033750,1746498644211,-3822.7337,0.00019999,2]
[360033751,1746498644220,-450.0,0.00019999,2]
[360033752,1746498644229,-189.94333007,0.00019999,2]
[360033753,1746498644239,-450.0,0.00019999,2]
[360033754,1746498644248,-450.0,0.00019999,2]
[360033755,1746498644258,-450.0,0.00019999,2]
[360033756,1746498644267,-450.0,0.00019999,2]
[360033757,1746498644277,-574.91375254,0.00019999,2]
[360033758,1746498644286,-450.0,0.00019999,2]
[360033759,1746498644295,-211.4667648,0.00019999,2]
[360033760,1746498644304,-522.94713556,0.00019999,2]
[360033761,1746498644313,-454.48,0.00019999,2]
[360033762,1746498644323,-454.48,0.00019999,2]
[360033763,1746498644332,-454.48,0.00019999,2]
[360033764,1746498644341,-454.48,0.00019999,2]
[360033765,1746498644350,-454.48,0.00019999,2]
[360033766,1746498644359,-454.48,0.00019999,2]
[360033767,1746498644369,-454.48,0.00019999,2]
[360033768,1746498644381,-454.48,0.00019999,2]
[360033769,1746498644393,-454.48,0.00019999,2]
[360033770,1746498644403,-454.48,0.00019999,2]
[360033771,1746498644413,-454.48,0.00019999,2]
[360033772,1746498644422,-454.48,0.00019999,2]
[360033773,1746498644432,-454.48,0.00019999,2]
[360033774,1746498644442,-454.48,0.00019999,2]
[360033775,1746498644453,-454.48,0.00019999,2]
[360033776,1746498644463,-454.48,0.00019999,2]
[360033777,1746498644472,-454.48,0.00019999,2]
[360033778,1746498644482,-454.48,0.00019999,2]
[360033779,1746498644492,-454.48,0.00019999,2]
[360033780,1746498644501,-454.48,0.00019999,2]
[360033781,1746498644511,-454.48,0.00019999,2]
[360033782,1746498644520,-454.60005233,0.00019999,2]
[360033783,1746498644530,-33478.83025049,0.00019999,2]
[360033784,1746498644539,-265.35,0.00019999,2]
[360033785,1746498644549,-450.0,0.00019999,2]
[360033786,1746498644559,-450.0,0.00019999,2]
[360033787,1746498644568,-450.0,0.00019999,2]
[360033788,1746498644577,-234.83685557,0.00019999,2]
[360033789,1746498644587,-450.0,0.00019999,2]
[360033790,1746498644597,-450.0,0.00019999,2]
[360033791,1746498644607,-450.0,0.00019999,2]
[360033792,1746498644616,-450.0,0.00019999,2]
[360033793,1746498644626,-420.32390231,0.00019999,2]
[360033794,1746498644635,-305.01662437,0.00019999,2]
[360033795,1746498644644,-450.0,0.00019999,2]
[360033796,1746498644653,-450.0,0.00019999,2]
[360033797,1746498644663,-446.27742573,0.00019999,2]
[360033798,1746498644673,-568.50303606,0.00019999,2]
[360033799,1746498644682,-450.0,0.00019999,2]
[360033800,1746498644692,-450.0,0.00019999,2]
[360033801,1746498644700,-450.0,0.00019999,2]
[360033802,1746498644709,-450.0,0.00019999,2]
[360033803,1746498644719,-324.21173779,0.00019999,2]
[360033804,1746498644728,-450.0,0.00019999,2]
[360033805,1746498644739,-450.0,0.00019999,2]
[360033806,1746498644749,-376.76412708,0.00019999,2]
[360033807,1746498644758,-450.0,0.00019999,2]
[360033808,1746498644767,-450.0,0.00019999,2]
[360033809,1746498644776,-245.90788639,0.00019999,2]
[360033810,1746498644786,-450.0,0.00019999,2]
[360033811,1746498644797,-597.54559638,0.00019999,2]
[360033812,1746498644806,-450.0,0.00019999,2]
[360033813,1746498644815,-450.0,0.00019999,2]
[360033814,1746498644824,-450.0,0.00019999,2]
[360033815,1746498644833,-450.0,0.00019999,2]
[360033816,1746498644842,-450.0,0.00019999,2]
[360033817,1746498644851,-460.11405081,0.00019999,2]
[360033818,1746498644860,-450.0,0.00019999,2]
[360033819,1746498644869,-450.0,0.00019999,2]
[360033820,1746498644878,-450.0,0.00019999,2]
[360033821,1746498644887,-450.0,0.00019999,2]
[360033822,1746498644897,-450.0,0.00019999,2]
[360033823,1746498644906,-450.0,0.00019999,2]
[360033824,1746498644915,-489.28829418,0.00019999,2]
[360033825,1746498645041,-450.0,0.00019999,2]
[360033826,1746498645051,-481.7447211,0.00019999,2]
[360033827,1746498645061,-450.0,0.00019999,2]
[360033828,1746498645070,-450.0,0.00019999,2]
[360033829,1746498645079,-450.0,0.00019999,2]
[360033830,1746498645087,-450.0,0.00019999,2]
[360033831,1746498645097,-450.0,0.00019999,2]
[360033832,1746498645106,-450.0,0.00019999,2]
[360033833,1746498645115,-450.0,0.00019999,2]
[360033834,1746498645124,-450.0,0.00019999,2]
[360033835,1746498645133,-450.0,0.00019999,2]
[360033836,1746498645142,-450.0,0.00019999,2]
[360033837,1746498645151,-450.0,0.00019999,2]
[360033838,1746498645161,-450.0,0.00019999,2]
[360033839,1746498645170,-506.73225743,0.00019999,2]
[360033840,1746498645179,-450.0,0.00019999,2]
[360033841,1746498645188,-510.08272282,0.00019999,2]
[360033842,1746498645197,-451.91301683,0.00019999,2]
[360033843,1746498645206,-450.0,0.00019999,2]
[360033844,1746498645215,-450.0,0.00019999,2]
[360033845,1746498645224,-450.0,0.00019999,2]
[360033846,1746498645235,-450.0,0.00019999,2]
[360033847,1746498645244,-450.0,0.00019999,2]
[360033848,1746498645254,-450.0,0.00019999,2]
[360033849,1746498645263,-450.0,0.00019999,2]
[360033850,1746498645272,-450.0,0.00019999,2]
[360033851,1746498645281,-450.0,0.00019999,2]
[360033852,1746498645290,-450.0,0.00019999,2]
[360033853,1746498645299,-450.0,0.00019999,2]
[360033854,1746498645309,-450.0,0.00019999,2]
[360033855,1746498645318,-255.98716498,0.00019999,2]
[360033856,1746498645328,-202.01570447,0.00019999,2]
[360033857,1746498645337,-450.0,0.00019999,2]
[360033859,1746498645346,-450.0,0.00019999,2]
[360033860,1746498645356,-450.0,0.00019999,2]
[360033862,1746498645366,-450.0,0.00019999,2]
[360033863,1746498645375,-450.0,0.00019999,2]
[360033864,1746498645386,-450.0,0.00019999,2]
[360033865,1746498645395,-450.0,0.00019999,2]
[360033867,1746498645404,-450.0,0.00019999,2]
[360033869,1746498645414,-450.0,0.00019999,2]
[360033871,1746498645424,-450.0,0.00019999,2]
[360033872,1746498645435,-450.0,0.00019999,2]
[360033874,1746498645444,-166.01937314,0.00019999,2]
[360033876,1746498645453,-450.0,0.00019999,2]
[360033878,1746498645462,-450.0,0.00019999,2]
[360033880,1746498645471,-450.0,0.00019999,2]
[360033882,1746498645480,-450.0,0.00019999,2]
[360033884,1746498645490,-450.0,0.00019999,2]
[360033886,1746498645500,-450.0,0.00019999,2]
[360033888,1746498645509,-450.0,0.00019999,2]
[360033890,1746498645519,-450.0,0.00019999,2]
[360033892,1746498645528,-450.0,0.00019999,2]
[360033894,1746498645537,-177.89661196,0.00019999,2]
[360033896,1746498645547,-456.31,0.00019999,2]
[360033898,1746498645556,-450.0,0.00019999,2]
[360033900,1746498645565,-450.0,0.00019999,2]
[360033902,1746498645574,-450.0,0.00019999,2]
[360033904,1746498645583,-450.0,0.00019999,2]
[360033906,1746498645593,-450.0,0.00019999,2]
[360033908,1746498645602,-450.0,0.00019999,2]
[360033911,1746498645612,-545.97548474,0.00019999,2]
[360033912,1746498645621,-450.0,0.00019999,2]
[360033914,1746498645631,-450.0,0.00019999,2]
[360033916,1746498645639,-450.0,0.00019999,2]
[360033917,1746498645648,-450.0,0.00019999,2]
[360033918,1746498645657,-450.0,0.00019999,2]
[360033920,1746498645668,-450.0,0.00019999,2]
[360033922,1746498645676,-450.0,0.00019999,2]
[360033923,1746498645686,-450.0,0.00019999,2]
[360033924,1746498645695,-450.0,0.00019999,2]
[360033925,1746498645706,-450.0,0.00019999,2]
[360033926,1746498645715,-450.0,0.00019999,2]
[360033927,1746498645726,-473.58334736,0.00019999,2]
[360033928,1746498645736,-450.0,0.00019999,2]
[360033929,1746498645745,-450.0,0.00019999,2]
[360033930,1746498645754,-450.0,0.00019999,2]
[360033931,1746498645763,-450.0,0.00019999,2]
[360033932,1746498645773,-450.0,0.00019999,2]
[360033933,1746498645784,-450.0,0.00019999,2]
[360033934,1746498645794,-450.0,0.00019999,2]
[360033935,1746498645803,-450.0,0.00019999,2]
[360033936,1746498645814,-450.0,0.00019999,2]
[360033937,1746498645823,-450.0,0.00019999,2]
[360033938,1746498645833,-450.0,0.00019999,2]
[360033939,1746498645842,-450.0,0.00019999,2]
[360033940,1746498645851,-450.0,0.00019999,2]
[360033941,1746498645863,-450.0,0.00019999,2]
[360033942,1746498645873,-450.0,0.00019999,2]
[360033943,1746498645882,-450.0,0.00019999,2]
[360033944,1746498645891,-450.0,0.00019999,2]
[360033945,1746498645901,-450.0,0.00019999,2]
[360033946,1746498645910,-450.0,0.00019999,2]
[360033947,1746498645919,-450.0,0.00019999,2]
[360033948,1746498645929,-450.0,0.00019999,2]
[360033949,1746498645939,-447.51932527,0.00019999,2]
[360033950,1746498645949,-450.0,0.00019999,2]
[360033951,1746498645959,-450.0,0.00019999,2]
[360033952,1746498645968,-450.0,0.00019999,2]
[360033953,1746498645977,-450.0,0.00019999,2]
[360033954,1746498645986,-450.0,0.00019999,2]
[360033955,1746498645995,-591.15,0.00019999,2]
[360033956,1746498646006,-9871.98,0.00019999,2]
[360033957,1746498646014,-450.0,0.00019999,2]
[360033958,1746498646023,-9871.98,0.00019999,2]
[360033959,1746498646032,-180.06924665,0.00019999,2]
[360033960,1746498646041,-9871.98,0.00019999,2]
[360033961,1746498646051,-9871.98,0.00019999,2]
[360033962,1746498646060,-9871.98,0.00019999,2]
[360033963,1746498646069,-9871.98,0.00019999,2]
[360033964,1746498646079,-9871.98,0.00019999,2]
[360033965,1746498646088,-450.0,0.00019999,2]
[360033966,1746498646097,-9871.98,0.00019999,2]
[360033967,1746498646106,-450.0,0.00019999,2]
[360033968,1746498646115,-9871.98,0.00019999,2]
[360033969,1746498646124,-9871.98,0.00019999,2]
[360033970,1746498646134,-9871.98,0.00019999,2]
[360033971,1746498646143,-9871.98,0.00019999,2]
[360033972,1746498646152,-9871.98,0.00019999,2]
[360033973,1746498646162,-9871.98,0.00019999,2]
[360033975,1746498646171,-9871.98,0.00019999,2]
[360033977,1746498646180,-9871.98,0.00019999,2]
[360033979,1746498646189,-9871.98,0.00019999,2]
[360033981,1746498646198,-9871.98,0.00019999,2]
[360033983,1746498646207,-9871.98,0.00019999,2]
[360033985,1746498646216,-9871.98,0.00019999,2]
[360033987,1746498646225,-9871.98,0.00019999,2]
[360033989,1746498646234,-9872.1369,0.00019999,2]
[360033991,1746498646243,-450.0,0.00019999,2]
[360033993,1746498646252,-450.0,0.00019999,2]
[360033994,1746498646261,-450.0,0.00019999,2]
[360033995,1746498646270,-434.57839927,0.00019999,2]
[360033996,1746498646279,-518.19,0.00019999,2]
[360033997,1746498646288,-450.0,0.00019999,2]
[360033998,1746498646297,-450.0,0.00019999,2]
[360033999,1746498646306,-183.23719913,0.00019999,2]
[360034000,1746498646315,-450.0,0.00019999,2]
[360034001,1746498646324,-450.0,0.00019999,2]
[360034002,1746498646334,-450.0,0.00019999,2]
[360034003,1746498646344,-450.0,0.00019999,2]
[360034004,1746498646353,-450.0,0.00019999,2]
[360034005,1746498646363,-450.0,0.00019999,2]
[360034006,1746498646372,-335.03624383,0.00019999,2]
[360034007,1746498646385,-909.29,0.00019999,2]
[360034008,1746498646394,-909.29,0.00019999,2]
[360034009,1746498646404,-909.29,0.00019999,2]
[360034010,1746498646413,-909.29,0.00019999,2]
[360034011,1746498646423,-450.0,0.00019999,2]
[360034012,1746498646433,-909.29,0.00019999,2]
[360034013,1746498646447,-381.80816265,0.00019999,2]
[360034014,1746498646458,-909.29,0.00019999,2]
[360034015,1746498646468,-909.29,0.00019999,2]
[360034016,1746498646477,-909.29,0.00019999,2]
[360034017,1746498646486,-909.29,0.00019999,2]
[360034018,1746498646495,-909.29,0.00019999,2]
[360034019,1746498646505,-909.29,0.00019999,2]
[360034020,1746498646514,-909.29,0.00019999,2]
[360034021,1746498646523,-909.29,0.00019999,2]
[360034022,1746498646532,-909.29,0.00019999,2]
[360034023,1746498646542,-909.29,0.00019999,2]
[360034024,1746498646551,-909.29,0.00019999,2]
[360034025,1746498646561,-909.29,0.00019999,2]
[360034026,1746498646571,-909.29,0.00019999,2]
[360034027,1746498646580,-909.29,0.00019999,2]
[360034028,1746498646590,-909.29,0.00019999,2]
[360034029,1746498646599,-909.29,0.00019999,2]
[360034030,1746498646609,-909.35,0.00019999,2]
[360034031,1746498646618,-450.0,0.00019999,2]
[360034032,1746498646628,-498.3542331,0.00019999,2]
[360034033,1746498646638,-450.0,0.00019999,2]
[360034034,1746498646648,-450.0,0.00019999,2]
[360034035,1746498646658,-584.97252211,0.00019999,2]
[360034036,1746498646668,-450.0,0.00019999,2]
[360034037,1746498646679,-450.0,0.00019999,2]
[360034038,1746498646690,-450.0,0.00019999,2]
[360034039,1746498646700,-450.0,0.00019999,2]
[360034040,1746498646710,-151.11134013,0.00019999,2]
[360034041,1746498646719,-496.47,0.00019999,2]
[360034042,1746498646728,-496.47,0.00019999,2]
[360034043,1746498646737,-496.47,0.00019999,2]
[360034044,1746498646746,-496.47,0.00019999,2]
[360034045,1746498646755,-496.47,0.00019999,2]
[360034046,1746498646764,-496.47,0.00019999,2]
[360034047,1746498646773,-496.47,0.00019999,2]
[360034048,1746498646782,-496.47,0.00019999,2]
[360034049,1746498646791,-554.64211063,0.00019999,2]
[360034050,1746498646801,-496.47,0.00019999,2]
[360034051,1746498646810,-496.47,0.00019999,2]
[360034052,1746498646819,-496.47,0.00019999,2]
[360034053,1746498646828,-496.47,0.00019999,2]
[360034054,1746498646839,-496.47,0.00019999,2]
[360034055,1746498646848,-496.47,0.00019999,2]
[360034056,1746498646857,-496.47,0.00019999,2]
[360034057,1746498646867,-496.47,0.00019999,2]
[360034058,1746498646877,-496.47,0.00019999,2]
[360034059,1746498646887,-496.47,0.00019999,2]
[360034060,1746498646896,-496.47,0.00019999,2]
[360034061,1746498646906,-496.47,0.00019999,2]
[360034062,1746498646915,-496.47,0.00019999,2]
[360034063,1746498646925,-496.51,0.00019999,2]
[360034064,1746498646934,-450.0,0.00019999,2]
[360034065,1746498646943,-210.20511169,0.00019999,2]
[360034066,1746498646953,-150.0,0.00019999,2]
[360034067,1746498646962,-450.0,0.00019999,2]
[360034068,1746498646972,-450.0,0.00019999,2]
[360034069,1746498646981,-450.0,0.00019999,2]
[360034070,1746498646990,-450.0,0.00019999,2]
[360034071,1746498646999,-450.0,0.00019999,2]
[360034072,1746498647008,-450.0,0.00019999,2]
[360034073,1746498647018,-450.0,0.00019999,2]
[360034074,1746498647027,-450.0,0.00019999,2]
[360034075,1746498647036,-500.0,0.00019999,2]
[360034076,1746498647045,-450.0,0.00019999,2]
[360034077,1746498647055,-450.0,0.00019999,2]
[360034078,1746498647064,-450.0,0.00019999,2]
[360034079,1746498647073,-450.0,0.00019999,2]
[360034080,1746498647084,-450.0,0.00019999,2]
[360034081,1746498647093,-7463.56,0.00019999,2]
[360034082,1746498647102,-7463.56,0.00019999,2]
[360034083,1746498647112,-7463.56,0.00019999,2]
[360034084,1746498647121,-7463.56,0.00019999,2]
[360034085,1746498647131,-7463.56,0.00019999,2]
[360034086,1746498647140,-7463.56,0.00019999,2]
[360034087,1746498647149,-7463.56,0.00019999,2]
[360034088,1746498647159,-7463.56,0.00019999,2]
[360034089,1746498647168,-7463.56,0.00019999,2]
[360034090,1746498647177,-7463.56,0.00019999,2]
[360034091,1746498647187,-7463.56,0.00019999,2]
[360034092,1746498647196,-7463.56,0.00019999,2]
[360034093,1746498647205,-7463.56,0.00019999,2]
[360034094,1746498647214,-7463.56,0.00019999,2]
[360034095,1746498647224,-7463.56,0.00019999,2]
[360034096,1746498647233,-7463.56,0.00019999,2]
[360034097,1746498647244,-7463.56,0.00019999,2]
[360034098,1746498647253,-7463.56,0.00019999,2]
[360034099,1746498647263,-7463.56,0.00019999,2]
[360034100,1746498647271,-7463.6,0.00019999,2]
[360034101,1746498647281,-450.0,0.00019999,2]
[360034102,1746498647291,-450.0,0.00019999,2]
[360034103,1746498647300,-450.0,0.00019999,2]
[360034104,1746498647309,-450.0,0.00019999,2]
[360034105,1746498647318,-450.0,0.00019999,2]
[360034106,1746498647328,-450.0,0.00019999,2]
[360034107,1746498647337,-159.8172007,0.00019999,2]
[360034108,1746498647346,-450.0,0.00019999,2]
[360034109,1746498647355,-450.0,0.00019999,2]
[360034110,1746498647365,-450.0,0.00019999,2]
[360034111,1746498647374,-450.0,0.00019999,2]
[360034112,1746498647387,-505.96659849,0.00019999,2]
[360034113,1746498647397,-891.0,0.00019999,2]
[360034114,1746498647406,-187.74475872,0.0002,2]
[360034115,1746498647415,-525485.0990406,0.0002,2]
[360034116,1746498647424,-115855.04345752,0.0002,2]
[360034117,1746498647733,-764.947,0.0002,2]
[360034118,1746498647858,-0.01144647,0.0002,2]
[360034119,1746498647870,-838.51312017,0.0002,2]
[360034120,1746498647881,-1287.1841543,0.0002,2]
[360034121,1746498647892,-967.07159406,0.0002,2]
[360034122,1746498647903,-796.92337553,0.0002,2]
[360034123,1746498647914,-1854.28371995,0.0002,2]
[360034124,1746498647929,-1165.30404382,0.0002,2]
[360034125,1746498647941,-396.41018603,0.0002,2]
[360034126,1746498647952,-841.09078813,0.0002,2]
[360034127,1746498647964,-735.915,0.0002,2]
[360034128,1746498647975,-7502.35497776,0.0002,2]
[360034129,1746498647986,-8846.81198358,0.0002,2]
[360034130,1746498647997,-31361.92882946,0.0002,2]
[360034131,1746498648017,-7178.74776248,0.0002,2]
[360034132,1746498648028,-300.42878841,0.0002,2]
[360034133,1746498648040,-542.66915189,0.0002,2]
[360034134,1746498648052,-6316.06535286,0.0002,2]
[360034135,1746498648063,-6744.0,0.0002,2]
[360034136,1746498648075,-854.01624939,0.0002,2]
[360034137,1746498648087,-1707.54595519,0.0002,2]
[360034138,1746498648098,-782.38704419,0.0002,2]
[360034139,1746498648110,-1121.145,0.0002,2]
[360034140,1746498648127,-5376.445856,0.0002,2]
[360034141,1746498648142,-7791.34558331,0.0002,2]
[360034142,1746498648155,-4291.94606349,0.0002,2]
[360034143,1746498648168,-1859.7140502,0.0002,2]
[360034144,1746498648180,-556.3898016,0.0002,2]
[360034145,1746498648192,-8257.49922451,0.0002,2]
[360034146,1746498648203,-12817.6468411,0.0002,2]
[360034147,1746498648215,-1214.53893025,0.0002,2]
[360034148,1746498648350,-1484.73048015,0.0002,2]
[360034149,1746498648362,-59097.77509533,0.0002,2]
[360034150,1746498648377,-12091.83298418,0.0002,2]
[360034151,1746498648390,-973.6646072,0.0002,2]
[360034152,1746498648402,-365.62017857,0.0002,2]
[360034153,1746498648414,-3718.04419391,0.0002,2]
[360034154,1746498648427,-4539.9236986,0.0002,2]
[360034155,1746498648439,-323.57617519,0.0002,2]
[360034156,1746498648453,-500.0,0.0002,2]
[360034157,1746498648465,-3534.93677787,0.0002,2]
[360034158,1746498648476,-4744.79967454,0.0002,2]
[360034159,1746498648488,-645.12208,0.0002,2]
[360034160,1746498648500,-2523.70000002,0.0002,2]
[360034161,1746498649281,-484.70767577,0.0002,2]
[360034162,1746498649293,-752.17677867,0.0002,2]
[360034163,1746498649304,-669.0,0.0002,2]
[360034164,1746498649951,166.0,0.000194,2]
[360034165,1746498691674,863.2307,0.00019451,2]
[360034166,1746498710129,1496.54403982,0.00019079,2]
[360034167,1746498710161,3000.0,0.00019079,2]
[360034168,1746498710195,2121.39596018,0.00019079,2]
[360034172,1746498732413,-441.08388535,0.00019502,2]
[360034174,1746498737235,-166.66,0.00019502,2]
[360034176,1746498741061,-164.45814965,0.00019502,2]
[360034179,1746498809635,-248.29830939,0.00019502,2]
[360034180,1746498810650,500.0,0.00029589,30]
[360034181,1746498810894,500.0,0.00029863,30]
[360034182,1746498812933,-61.45428961,0.00019502,2]
[360034183,1746498831927,250.0,0.00017,2]
[360034184,1746498832994,300.0,0.00019,2]
[360034187,1746498944182,164.4,0.00019025,2]
[360034188,1746498994298,173.52,0.00019012,2]
[360034189,1746498994521,173.52,0.00019044,2]
[360034190,1746498994738,173.52,0.00019076,2]
[360034191,1746498994967,173.52,0.00019107,2]
[360034192,1746499021913,304.94,0.00018976,2]
[360034193,1746499022594,278.93804006,0.00016997,2]
[360034194,1746499022621,373.74195994,0.00016997,2]
[360034195,1746499022844,652.68,0.00019261,2]
[360034196,1746499046577,189.43,0.00018962,2]
[360034197,1746499091148,200.0,0.00019,2]